Cogmind - Beta 17 @@@ ROGUE MODE // 2026.06.22 @ 23:46:54 Player: jumpy Result: Destroyed by Enhanced Grunt with Improved Deuterium Engine chain reaction Performance ------------- Evolutions (4) 2000 Regions Visited (9) 1800 Robots Destroyed (66) 330 Value Destroyed (2030) 2030 Prototype IDs (216) 4320 Alien Tech Used (0) 0 Bonus (8620) 8620 TOTAL SCORE: 19100 Bonus ------- Follower Combat Kills 161 Prayed to X0-1V1 5000 Major X0-1V1 Interference 750 Met Data Miner 300 Used Data Conduit 3000 Friendly Fire -591 Cogmind --------- Core Integrity 0/625 Matter 891/900 Energy 99/100 System Corruption 20% Temperature Cool (12) Movement Treading (160) Location -6/Data Miner Parts ------- > --- POWER (2) -------- (None) > --- PROPULSION (5) --- Medium Treads Carbon-fiber Leg Cooled Aerolev Unit > --- UTILITY (7) ------ Improved Cooling System X0-1V1's Piety Tracker > --- WEAPON (2) ------- Makeshift Sword (fused) Scimitar of Distortion > --- INVENTORY (5) ---- Improved Deuterium Engine Layered Heavy Armor Plating Lightning Gun Lightning Gun Peak State ------------ > --- POWER ------------ Micro Nuclear Core Fission Core > --- PROPULSION ------- Gravmag System Gravmag System Cooled Aerolev Unit Gravmag Array > --- UTILITY ---------- Improved Heat Sink Seismic Detector Layered Heavy Armor Plating X0-1V1's Piety Tracker > --- WEAPON ----------- Plasma Cannon Plasma Cannon > --- INVENTORY -------- Improved Deuterium Engine Light Angular Momentum Engine Improved Terrain Scanner Mining Laser [Rating: 71] Favorites ----------- Power Light Ion Engine Engine Light Ion Engine Power Core Micro Nuclear Core Propulsion Aluminum Leg Treads Medium Treads Leg Aluminum Leg Wheel Wheel Hover Unit Gravmag System Flight Unit Nuclear Pulse Thruster Utility X0-1V1's Piety Tracker Device X0-1V1's Piety Tracker Storage Small Storage Unit Protection Layered Heavy Armor Plating Weapon Plasma Cannon Energy Gun Small Laser Energy Cannon Plasma Cannon Ballistic Gun Assault Rifle Ballistic Cannon Flak Cannon Launcher Grenade Launcher Special Weapon Mining Laser Slashing Weapon Makeshift Sword Build | -11 -10 -9 -8 -8 -8 -6 -6 -6 -6 ------- Run | Yrd Mat Mat Mat Sto Rec Fac Low Low Dat Slots Evolved 8 | . . 2 2 . . 4 . . . Power 1 | . . . . . . 1 . . . Propulsion 3 | . . 1 1 . . 1 . . . Utility 3 | . . 1 1 . . 1 . . . Weapon 1 | . . . . . . 1 . . . Parts Attached 51 | 7 7 1 10 3 2 16 1 4 . Power 7 | 1 1 . 1 1 . 2 . 1 . Engine 2 | 1 1 . . . . . . . . Core 5 | . . . 1 1 . 2 . 1 . Reactor . | . . . . . . . . . . Propulsion 21 | 2 3 . 5 1 1 7 . 2 . Treads 1 | . . . . . . . . 1 . Leg 11 | 2 3 . 3 1 1 . . 1 . Wheel 2 | . . . 2 . . . . . . Hover 6 | . . . . . . 6 . . . Flight 1 | . . . . . . 1 . . . Utility 8 | 2 . 1 1 . . 3 . 1 . Device 7 | 1 . 1 1 . . 3 . 1 . Storage 1 | 1 . . . . . . . . . Processor . | . . . . . . . . . . Hackware . | . . . . . . . . . . Protection . | . . . . . . . . . . Artifact . | . . . . . . . . . . Weapon 15 | 2 3 . 3 1 1 4 1 . . Energy Gun 6 | 1 3 . . 1 . 1 . . . Energy Cannon 2 | . . . . . . 2 . . . Ballistic Gun 2 | 1 . . 1 . . . . . . Ballistic Cannon 1 | . . . 1 . . . . . . Launcher 2 | . . . 1 . 1 . . . . Special Weapon 1 | . . . . . . 1 . . . Impact Weapon . | . . . . . . . . . . Slashing Weapon 1 | . . . . . . . 1 . . Piercing Weapon . | . . . . . . . . . . Special Melee Weapon . | . . . . . . . . . . Unidentified Prototypes 3 | . . 1 . . . 2 . . . Parts Lost 33 | . 4 3 7 2 4 7 . 5 1 Power 6 | . 1 1 . . 1 1 . 1 1 Propulsion 15 | . 1 2 2 1 2 4 . 3 . Utility 4 | . . . 2 . . 1 . 1 . Weapon 8 | . 2 . 3 1 1 1 . . . Highest Loss Streak 7 | . 3 3 7 1 4 2 . 4 1 To Critical Strikes . | . . . . . . . . . . Average Backups 5 | 3 7 6 3 4 4 4 4 4 4 Power . | . . . . 1 1 1 2 1 1 Propulsion . | 1 2 2 . . . . . . . Utility 1 | . 2 2 2 2 2 1 2 1 1 Weapon 1 | 1 2 2 1 1 1 . . 1 2 Tool/Special . | . . . . . . . . . . Unused Backups 7 | . . . . . . 2 . 2 3 Power 4 | . . . . . . 2 . 1 1 Propulsion . | . . . . . . . . . . Utility 1 | . . . . . . . . 1 . Weapon 2 | . . . . . . . . . 2 Tool/Special . | . . . . . . . . . . Average Slot Usage (%) 65 | . 97 98 57 75 57 36 53 54 49 Engine 3 | . 13 10 . . . . . . . Core 4 | . . . 2 9 6 4 5 7 5 Leg 15 | . 27 32 12 32 20 1 . 3 6 Hover 5 | . . . . . . 11 22 11 6 Device 12 | . 14 21 8 9 8 9 16 15 12 Storage 6 | . 14 11 9 9 8 1 . . . Energy Gun 7 | . 17 22 8 3 6 1 . 1 . Energy Cannon 1 | . . . . . . 4 5 1 . Ballistic Gun 2 | . 9 . 5 4 . . . . . Ballistic Cannon 1 | . . . 2 9 6 . . . . Slashing Weapon 1 | . . . . . . . 3 10 12 Peak Build Rating 71 | 7 9 21 25 29 28 71 57 69 46 Average Rating 26 | 5 7 20 13 27 24 36 55 49 45 On Entrance 25 | . 7 9 18 25 28 15 53 57 46 Avg Prop Armor Cover (%) 9 | . . . 9 . . . . 7 15 Naked Turns . | . . . . . . . . . . Heaviest Build 53 | 12 13 13 20 20 20 53 18 32 15 Greatest Support 47 | 20 20 30 30 47 37 47 47 47 28 Greatest Overweight (x) 5 | . . . . . 1 5 . 2 . Average Overweight (x) . | . . . . . . . . . . Largest Inventory Capacity 8 | 8 8 8 8 8 8 8 5 5 5 Average Capacity 6 | 7 8 8 8 8 8 5 5 5 5 Most Carried 8 | 7 8 7 6 6 5 6 5 5 5 Average Carried 5 | 3 7 6 3 4 4 4 5 5 5 Final Capacity 8 | 8 8 8 8 8 8 5 5 5 5 Final Carried 8 | 7 8 6 4 5 4 5 5 5 5 Class Distribution -------------------- 55% | Mutant 41% | Scavenger-Mutant 3% | Commander-Mutant Dominant Class ---------------- Mutant | -10/Materials Mutant | -9/Materials Mutant | -8/Materials Scavenger-Mutant | -8/Storage Scavenger-Mutant | -8/Recycling Mutant | -6/Factory Scavenger-Mutant | -6/Lower Caves Scavenger-Mutant | -6/Lower Caves Scavenger-Mutant | -6/Data Miner Resources | -11 -10 -9 -8 -8 -8 -6 -6 -6 -6 ----------- Run | Yrd Mat Mat Mat Sto Rec Fac Low Low Dat Matter Collected 1379 | 297 125 . 139 298 50 297 10 163 . Remotely . | . . . . . . . . . . Salvage Created 2535 | 158 477 107 240 324 327 479 19 404 . Parts 143 | 14 38 9 11 21 12 15 5 18 . Haulers Intercepted . | . . . . . . . . . . Recyclers Shooed . | . . . . . . . . . . Parts Field Recycled . | . . . . . . . . . . Retrieved Matter . | . . . . . . . . . . Parts Self-Destructed 13 | . . . . . . . . 13 . Prevented . | . . . . . . . . . . Parts Restored . | . . . . . . . . . . Kills | -11 -10 -9 -8 -8 -8 -6 -6 -6 -6 ------- Run | Yrd Mat Mat Mat Sto Rec Fac Low Low Dat Combat Hostiles Destroyed 49 | . 12 4 5 10 5 6 1 6 . Melee 5 | . . . . . . . . 5 . Guns 27 | . 11 4 5 4 2 1 . . . Cannons 14 | . . . . 6 2 5 1 . . AOE 2 | . 1 . . . 1 . . . . Classes Destroyed 15 | 2 6 . 1 . 1 1 1 3 . Worker 3 | . 1 . . . 1 1 . . . Builder 1 | . 1 . . . . . . . . Tunneler 6 | 4 2 . . . . . . . . Recycler 3 | 1 . . . . 2 . . . . Mechanic 1 | . 1 . . . . . . . . Operator 1 | . 1 . . . . . . . . Swarmer 9 | . 3 2 . 1 1 . . 2 . Grunt 23 | . 9 2 3 4 1 2 . 2 . Brawler 1 | . . . . . . . . 1 . Sentry 11 | . . . 2 5 2 2 . . . Hunter 3 | . . . . . . 3 . . . Programmer 2 | . . . . . 1 1 . . . Samaritan 2 | . . . . . . . . 2 . Thief 1 | . . . . . . . 1 . . Mutant 1 | . . . . . . . . 1 . Best Kill Streak 9 | 4 9 2 3 4 5 2 1 4 . Combat Bots Only 5 | . 5 2 3 4 3 2 1 4 . Max Kills in Single Turn 5 | 1 5 1 1 1 2 1 1 1 . Gunslinging 1 | . 1 . . . . . . . . Exploded 1 | . 1 . . . 1 . . . . Melee 1 | . . . . . . . . 1 . Uniques/NPCs Destroyed . | . . . . . . . . . . Combat | -11 -10 -9 -8 -8 -8 -6 -6 -6 -6 -------- Run | Yrd Mat Mat Mat Sto Rec Fac Low Low Dat Hostile Shots Fired 381 | . 44 41 53 40 26 133 1 36 7 Missed 120 | . 7 11 18 12 5 56 . 9 2 Hits 261 | . 37 30 35 28 21 77 1 27 5 Melee 7 | . . . . . 3 . 1 3 . Projectile 254 | . 37 30 35 28 18 77 . 24 5 AOE 3 | . . . . . . 2 . . 1 Critical Strikes 13 | . 1 . 1 2 4 1 . 4 . Part Disruptions 1 | . . . . . . . . 1 . Damage Taken 3999 | . 516 349 533 451 384 1040 9 428 289 Core 1060 | . 116 87 62 81 81 306 . 141 186 Absorbed by Shields . | . . . . . . . . . . Core Remaining (%) 76 | 100 53 73 . . 79 . . . . Volleys Fired 185 | 9 34 14 21 28 14 60 2 3 . Largest 2 | 2 2 2 2 2 2 2 1 1 . Hottest 160 | 60 90 90 63 93 93 160 80 80 . Shots Fired 309 | 18 66 25 33 52 25 85 2 3 . Gun 208 | 18 66 25 30 24 14 31 . . . Cannon 97 | . . . 2 28 10 52 2 3 . Launcher 2 | . . . 1 . 1 . . . . Special 2 | . . . . . . 2 . . . Kinetic 99 | 9 27 . 14 39 10 . . . . Thermal 208 | 9 39 25 18 13 14 85 2 3 . Explosive 2 | . . . 1 . 1 . . . . Electromagnetic . | . . . . . . . . . . Robot Hit Streak 12 | 3 7 4 5 12 12 9 11 12 . Robot Miss Streak 7 | 2 3 2 2 4 7 3 . . . Penetration Max . | . . . . . . . . . . Secondary Targets 5 | . 4 1 . . . . . . . Max Gunslinging Chain 1 | . 1 1 . . . . . . . Shots Hit Robots 226 | 8 45 17 20 41 21 47 2 24 1 Core Hits 140 | 6 28 7 13 37 18 18 2 11 . Critical Kills . | . . . . . . . . . . Critical Parts Destroyed . | . . . . . . . . . . Critical Strikes 3 | . 2 . . . . 1 . . . Burn 3 | . 2 . . . . 1 . . . Melee Attacks 29 | . . . . . . . . 28 1 Impact . | . . . . . . . . . . Slashing 29 | . . . . . . . . 28 1 Piercing . | . . . . . . . . . . Sneak Attacks 3 | . . . . . . . . 2 1 Combat Hostiles . | . . . . . . . . . . Follow-up Attacks 5 | . . . . . . . . 5 . Damage Inflicted 5302 | 90 980 206 360 769 604 1303 52 858 80 Guns 2040 | 90 546 202 237 264 180 521 . . . Cannons 1652 | . . . 27 505 272 769 52 27 . Explosions 659 | . 431 . 91 . 137 . . . . Melee 911 | . . . . . . . . 831 80 Ramming 40 | . 3 4 5 . 15 13 . . . Kinetic 1292 | 26 241 . 130 639 256 . . . . Thermal 2384 | 64 305 202 134 130 180 1290 52 27 . Explosive 659 | . 431 . 91 . 137 . . . . Electromagnetic . | . . . . . . . . . . Impact 16 | . . . . . 16 . . . . Slashing 911 | . . . . . . . . 831 80 Piercing . | . . . . . . . . . . Highest Corruption 20 | . 3 . . . 1 . . 20 20 Average Corruption 7 | . 2 . . . 1 . . 17 20 Corruption Purged . | . . . . . . . . . . Corruption Blocked . | . . . . . . . . . . Effects 22 | . 5 . . . 2 . . 10 5 Message Errors 6 | . 1 . . . 1 . . 2 2 Matter Fused 4 | . . . . . . . . 2 2 Heat Flow Errors 1 | . 1 . . . . . . . . Energy Discharges 2 | . 1 . . . . . . . 1 Parts Rejected 1 | . . . . . 1 . . . . Data Loss (minor) 3 | . . . . . . . . 3 . Data Loss (major) 4 | . 2 . . . . . . 2 . Misdirections 1 | . . . . . . . . 1 . Overload Shots . | . . . . . . . . . . Overflow Damage 77 | . 24 . . . 8 . . 45 . Projectiles . | . . . . . . . . . . Explosions 32 | . 24 . . . 8 . . . . Melee 45 | . . . . . . . . 45 . Knockbacks 20 | . . . . 15 5 . . . . Impact . | . . . . . . . . . . Kinetic 17 | . . . . 13 4 . . . . Secondary 3 | . . . . 2 1 . . . . Self-Inflicted Damage 148 | . 114 . . . 28 6 . . . Shots 2 | . 1 . . . 1 . . . . Rammed 2 | . . . . . . 2 . . . Targets Rammed 8 | . 1 3 1 . 1 2 . . . Kicked 6 | . 1 3 1 . 1 . . . . Crushed . | . . . . . . . . . . Highest Temperature 380 | . 229 275 8 19 1 380 . 28 . Average Temperature 74 | . 49 117 4 4 1 99 . 20 . Received Heat Transfer 1321 | . 192 174 252 189 72 249 . 181 12 Effects 4 | . . 3 . . . 1 . . . Interference 3 | . . 3 . . . . . . . Damage (minor) 1 | . . . . . . 1 . . . Siege Activations . | . . . . . . . . . . Martial Activations . | . . . . . . . . . . Shielding Activations . | . . . . . . . . . . Robots Disrupted . | . . . . . . . . . . Combat Hostiles . | . . . . . . . . . . Robots Corrupted . | . . . . . . . . . . Combat Hostiles . | . . . . . . . . . . Parts Fried . | . . . . . . . . . . Impact Corruptions . | . . . . . . . . . . Robots Melted . | . . . . . . . . . . Combat Hostiles . | . . . . . . . . . . Parts Melted 8 | . 1 . 1 . . 6 . . . Heat Transferred 5209 | 150 1037 545 323 333 407 2264 100 50 . Parts Sabotaged . | . . . . . . . . . . Parts Stolen . | . . . . . . . . . . Parts Stripped 4 | . . . . . . . . 4 . Power Chain Reactions . | . . . . . . . . . . Alert | -11 -10 -9 -8 -8 -8 -6 -6 -6 -6 ------- Run | Yrd Mat Mat Mat Sto Rec Fac Low Low Dat Maximum Alert Level 1 | . 1 . . . . . . . . Low Security (%) 97 | 100 91 100 100 100 100 100 . . . Level 1 2 | . 8 . . . . . . . . Level 2 . | . . . . . . . . . . Level 3 . | . . . . . . . . . . Level 4 . | . . . . . . . . . . Level 5 . | . . . . . . . . . . High Security . | . . . . . . . . . . Max Security . | . . . . . . . . . . Peak Influence 214 | 10 214 100 51 145 106 192 . . . Initial 166 | . . 55 20 13 52 166 . . . Average 84 | 1 91 64 22 46 71 139 . . . Influence Increases 1970 | 25 423 105 140 265 226 588 . 198 . Destroy 0b10 Robot/C 1060 | . 240 80 100 200 100 200 . 140 . Destroy 0b10 Robot/NC 85 | 25 30 . . . 15 15 . . . Destroy Leader 250 | . 60 10 30 50 . 70 . 30 . Allied During Kill 81 | . . . . 13 10 30 . 28 . Select Force Hacks 90 | . . . . . 90 . . . . Disable Machine 45 | . 15 . . . . 30 . . . Destroy Structure 44 | . 18 . 10 2 11 3 . . . Advance Influence 150 | . . . . . . 150 . . . Lose Combat Pursuer 165 | . 60 15 . . . 90 . . . Influence Decreases 1970 | 25 290 188 159 161 321 452 136 190 48 Entered New Map 355 | . . 78 30 18 83 24 66 8 48 Time Decay 1285 | 25 250 80 79 123 198 318 70 142 . Lost Part 270 | . 40 30 50 20 40 70 . 20 . Lost Ally 60 | . . . . . . 40 . 20 . Squads Dispatched 7 | . 3 . 2 1 . 1 . . . Investigation 2 | . 1 . 1 . . . . . . Extermination 1 | . . . . . . 1 . . . Reinforcement 3 | . 2 . 1 . . . . . . Assault . | . . . . . . . . . . Garrison 1 | . . . . 1 . . . . . Intercept . | . . . . . . . . . . Searches Triggered . | . . . . . . . . . . Construction Impeded . | . . . . . . . . . . Haulers Reinforced . | . . . . . . . . . . Active Scanning Responses . | . . . . . . . . . . Cargo Convoy Interrupts . | . . . . . . . . . . Stealth | -11 -10 -9 -8 -8 -8 -6 -6 -6 -6 --------- Run | Yrd Mat Mat Mat Sto Rec Fac Low Low Dat Distress Signals 6 | . 3 1 . 2 . . . . . Communications Jammed . | . . . . . . . . . . Distress Signals . | . . . . . . . . . . Times Spotted 88 | . 22 9 5 15 6 18 1 8 4 Peak Tracking Total 6 | . 6 4 4 4 4 6 1 4 4 Tactical Retreats 7 | . 3 1 . . . 3 . . . Traps | -11 -10 -9 -8 -8 -8 -6 -6 -6 -6 ------- Run | Yrd Mat Mat Mat Sto Rec Fac Low Low Dat Traps Triggered 6 | . 3 . 1 1 . 1 . . . Indirectly . | . . . . . . . . . . Trap Hack Attempts . | . . . . . . . . . . Triggered . | . . . . . . . . . . Disarmed . | . . . . . . . . . . Reprogrammed . | . . . . . . . . . . Reused . | . . . . . . . . . . Traps Extracted . | . . . . . . . . . . Installed . | . . . . . . . . . . Triggered . | . . . . . . . . . . Machines | -11 -10 -9 -8 -8 -8 -6 -6 -6 -6 ---------- Run | Yrd Mat Mat Mat Sto Rec Fac Low Low Dat Machines Disabled 4 | . 1 . . . . 2 . 1 . Max in Single Turn 1 | . 1 . . . . . . 1 . Machines Repaired . | . . . . . . . . . . Machines Dismantled . | . . . . . . . . . . Machines Sabotaged . | . . . . . . . . . . Overloaded Fab Kills . | . . . . . . . . . . Hacking | -11 -10 -9 -8 -8 -8 -6 -6 -6 -6 --------- Run | Yrd Mat Mat Mat Sto Rec Fac Low Low Dat Machines Accessed 4 | . . . 1 . 3 . . . . Terminals 1 | . . . 1 . . . . . . Fabricators . | . . . . . . . . . . Repair Stations . | . . . . . . . . . . Recycling Units 3 | . . . . . 3 . . . . Scanalyzers . | . . . . . . . . . . Garrison Access . | . . . . . . . . . . Total Hacks 7 | . . . 4 . 3 . . . . Successful 6 | . . . 3 . 3 . . . . Failed 1 | . . . 1 . . . . . . Catastrophic . | . . . . . . . . . . Database Lockouts . | . . . . . . . . . . Manual 10 | . 1 . 5 1 3 . . . . Terminals 4 | . . . 4 . . . . . . Fabricators . | . . . . . . . . . . Repair Stations . | . . . . . . . . . . Recycling Units 3 | . . . . . 3 . . . . Scanalyzers . | . . . . . . . . . . Garrison Access . | . . . . . . . . . . Terminal Hacks 1 | . . . 1 . . . . . . Robot Analysis 1 | . . . 1 . . . . . . Fabricator Hacks . | . . . . . . . . . . Repair Station Hacks . | . . . . . . . . . . Recycling Unit Hacks . | . . . . . . . . . . Scanalyzer . | . . . . . . . . . . Garrison Access Hacks . | . . . . . . . . . . Unauthorized Hacks 5 | . . . 2 . 3 . . . . Terminals 2 | . . . 2 . . . . . . Botnet 1 | . . . 1 . . . . . . Skim 1 | . . . 1 . . . . . . Fabricators . | . . . . . . . . . . Repair Stations . | . . . . . . . . . . Recycling Units 3 | . . . . . 3 . . . . Tunnel 3 | . . . . . 3 . . . . Scanalyzers . | . . . . . . . . . . Garrison Access . | . . . . . . . . . . Data Cores Recovered 1 | . . . . . . 1 . . . Used . | . . . . . . . . . . Hacking Detections 1 | . . . . 1 . . . . . Full Trace Events . | . . . . . . . . . . Feedback Events . | . . . . . . . . . . Feedback Blocked . | . . . . . . . . . . Robot Schematics Acquired . | . . . . . . . . . . Robots Built . | . . . . . . . . . . Authchips . | . . . . . . . . . . Time . | . . . . . . . . . . Total Robot Build Rating . | . . . . . . . . . . Part Schematics Acquired . | . . . . . . . . . . Parts Built . | . . . . . . . . . . Authchips . | . . . . . . . . . . Time . | . . . . . . . . . . Total Part Build Rating . | . . . . . . . . . . Part Studies Acquired . | . . . . . . . . . . Parts Repaired . | . . . . . . . . . . Time . | . . . . . . . . . . Parts Recycled . | . . . . . . . . . . Recycled Matter . | . . . . . . . . . . Retrieved Matter . | . . . . . . . . . . Retrieved Components . | . . . . . . . . . . Parts Scanalyzed . | . . . . . . . . . . Part Schematics Acquired . | . . . . . . . . . . Parts Damaged . | . . . . . . . . . . Bothacking | -11 -10 -9 -8 -8 -8 -6 -6 -6 -6 ------------ Run | Yrd Mat Mat Mat Sto Rec Fac Low Low Dat Used RIF Installer . | . . . . . . . . . . Robots Hacked . | . . . . . . . . . . Non-combat . | . . . . . . . . . . Combat . | . . . . . . . . . . Robot Hacks Applied . | . . . . . . . . . . Relay Couplers Released . | . . . . . . . . . . Fabnet Peak Effective % . | . . . . . . . . . . Robots Rewired 4 | . . . . . . . . 4 . Allies Hacked . | . . . . . . . . . . Hacks Repelled . | . . . . . . . . . . Allies | -11 -10 -9 -8 -8 -8 -6 -6 -6 -6 -------- Run | Yrd Mat Mat Mat Sto Rec Fac Low Low Dat Total Allies 9 | . . . . 1 . 4 . 4 . Largest Group 4 | . . . . 1 1 4 . 4 3 Highest-Rated Group 164 | . . . . 142 142 164 . 119 79 Highest-Rated Ally 142 | . . . . 142 142 41 . 30 30 Total Orders . | . . . . . . . . . . Ally Attacks 46 | . . . . 2 1 28 . 13 2 Total Damage 1310 | . . . . 65 85 843 . 269 48 Kills 8 | . . . . . . 6 . 2 . Allies Corrupted . | . . . . . . . . . . Allies Melted 2 | . . . . . . 1 . 1 . X0-1V1 Amusement Gains 171 | . 13 . 10 10 25 15 . 8 90 Good Acts 28 | . . 1 . 7 5 9 2 4 . Bad Acts 13 | . . 6 1 1 . 1 . 4 . Intel | -11 -10 -9 -8 -8 -8 -6 -6 -6 -6 ------- Run | Yrd Mat Mat Mat Sto Rec Fac Low Low Dat Active Infowar (turns) 1665 | 50 695 178 60 . . 318 142 222 . Seismic 1665 | 50 695 178 60 . . 318 142 222 . Robot Analysis Total 154 | . . . 1 . . . . . 153 Derelict Logs Recovered 2 | . . . . . . . 2 . . Drone Launches . | . . . . . . . . . . Drone Recoveries . | . . . . . . . . . . Exploration | -11 -10 -9 -8 -8 -8 -6 -6 -6 -6 ------------- Run | Yrd Mat Mat Mat Sto Rec Fac Low Low Dat Turns Passed 3200 | 154 695 178 163 311 419 701 142 356 81 Spaces Moved 2429 | 94 454 95 87 168 219 680 298 285 49 Core 53 | 7 . . . . 1 45 . . . Treads 67 | . . . . . . . . 18 49 Legs 1287 | 87 454 95 34 168 218 121 . 110 . Wheels 53 | . . . 53 . . . . . . Hover 966 | . . . . . . 511 298 157 . Flight 3 | . . . . . . 3 . . . Fastest Speed 45 | 50 120 120 80 120 100 45 45 45 160 Average Speed 93 | 114 120 120 95 121 122 73 45 85 160 Slowest Speed 300 | 120 120 120 120 123 123 300 45 190 160 Overloaded Moves . | . . . . . . . . . . Propulsion Burnouts . | . . . . . . . . . . Robots Hopped . | . . . . . . . . . . Potential Cave-ins 1 | . . . . . . . . 1 . Cave-ins Triggered . | . . . . . . . . . . Exploration Rate (%) 41 | 5 88 20 12 36 58 17 60 54 63 Regions Visited 9 Branch Regions 5 Pre-discovered Areas 29 | . . . . . 3 . . . 26 Known Exits Taken . | . . . . . . . . . . Unknown Exits Taken 9 | 1 1 1 1 1 1 1 1 1 . Scrap Searched 1 | . . . . . . . 1 . . Spaces Dug . | . . . . . . . . . . Terrain Destroyed 38 | . 21 . 9 . 8 . . . . Melee . | . . . . . . . . . . Projectile . | . . . . . . . . . . AOE 38 | . 21 . 9 . 8 . . . . Terrain Rammed . | . . . . . . . . . . Walls Destroyed . | . . . . . . . . . . Machines Disabled . | . . . . . . . . . . Actions | -11 -10 -9 -8 -8 -8 -6 -6 -6 -6 --------- Run | Yrd Mat Mat Mat Sto Rec Fac Low Low Dat Total 2987 | 118 537 133 130 221 343 790 302 363 50 Wait 229 | 2 38 20 9 21 107 20 2 10 . Move 2421 | 93 453 94 87 167 218 679 297 284 49 Hop . | . . . . . . . . . . Pick Up 17 | 7 3 . 1 1 . 5 . . . Fast Attach 38 | 7 1 . 7 2 2 14 1 4 . Attach 12 | . 3 2 3 . 1 3 . . . Detach . | . . . . . . . . . . Swap 5 | . 3 . 1 1 . . . . . Drop 12 | . 1 . 1 1 . 7 . 2 . Fire 185 | 9 34 14 21 28 14 60 2 3 . Melee 23 | . . . . . . . . 22 1 Ram 2 | . . . . . . 2 . . . Kick 5 | . 1 3 . . 1 . . . . Crush . | . . . . . . . . . . Escape Stasis . | . . . . . . . . . . Rewire 38 | . . . . . . . . 38 . Trap . | . . . . . . . . . . Miscellaneous . | . . . . . . . . . . Route ------- -11/Scrapyard -10/Materials (discovered 6 exits: [*Mat x3] / [*Min x2] / [*Sub]) -9/Materials -8/Materials -8/Storage -8/Recycling (discovered 2 exits: [*Fac] / Scr) -6/Factory (discovered 2 exits: Fac / [*Low]) -6/Lower Caves -6/Lower Caves (discovered 2 exits: *Fac / [*Dat]) -6/Data Miner (discovered 1 exit: [*Pro]) History --------- Turn | Location | Event 4 | -11/Scrapyard | Discovered new exit (range 15) 155 | -11/Scrapyard | Entered Materials 328 | -10/Materials | Build established: Mutant 344 | -10/Materials | Discovered new exit (range 6) 414 | -10/Materials | Discovered new exit (range 11) 465 | -10/Materials | Discovered new exit (range 5) 597 | -10/Materials | Lost 3 parts (1p1n1w) 644 | -10/Materials | Discovered new exit (range 16) 679 | -10/Materials | Discovered new exit (range 5) 786 | -10/Materials | Prayed at D.C.S.S. Altar Unit 791 | -10/Materials | Discovered new exit (range 5) 850 | -10/Materials | Entered another Materials area 850 | -9/Materials | Evolved 2 slots: Propulsion x1, Utility x1 1000 | -9/Materials | Sight range permanently improved by X0-1V1 (+1) 1003 | -9/Materials | Discovered new exit (range 13) 1028 | -9/Materials | Entered another Materials area 1028 | -8/Materials | Evolved 2 slots: Propulsion x1, Utility x1 1053 | -8/Materials | Lost 3 parts (1p2n) 1079 | -8/Materials | Discovered new exit (range 17) 1170 | -8/Materials | Lost 7 parts (2n2u3w) 1191 | -8/Materials | Entered Storage 1253 | -8/Storage | X0-1V1 downgraded hostiles (x2) 1368 | -8/Storage | Heat dissipation permanently improved by X0-1V1 (+15) 1414 | -8/Storage | X0-1V1 foreshadows a heat wave 1417 | -8/Storage | Garrison activated, responded to threat 1418 | -8/Storage | X0-1V1 sent allied H-71 Marshal (x1) 1448 | -8/Storage | Build established: Scavenger-Mutant 1493 | -8/Storage | Used back door to open Recycling access 1493 | -8/Storage | Discovered new exit (range 5) 1502 | -8/Storage | Entered Recycling 1502 | -8/Recycling | Accompanied by 1 ally 1812 | -8/Recycling | Discovered new exit (range 2) 1812 | -8/Recycling | X0-1V1 whisked you away to safety 1828 | -8/Recycling | Utility slot count permanently improved by X0-1V1 (+1) 1839 | -8/Recycling | Lost 4 parts (1p2n1w) 1893 | -8/Recycling | Identified exit to Scraptown 1893 | -8/Recycling | X0-1V1 revealed exit location to -8/Scraptown 1917 | -8/Recycling | Core integrity restored by X0-1V1 (+81) 1921 | -8/Recycling | Entered Factory 1921 | -6/Factory | Evolved 4 slots: Power x1, Propulsion x1, Utility x1, Weapon x1 2085 | -6/Factory | Build established: Mutant 2117 | -6/Factory | X0-1V1 sent allied H-66 Slayer (x4) 2393 | -6/Factory | X0-1V1 activates XOMVISION 2411 | -6/Factory | X0-1V1 downgraded hostiles (x2) 2458 | -6/Factory | Spotted B-75 Beast 2462 | -6/Factory | Weapon slot count temporarily expanded by X0-1V1 (+3) 2489 | -6/Factory | Identified exit to Factory 2489 | -6/Factory | X0-1V1 revealed exit location to -5/Factory 2601 | -6/Factory | Discovered new exit (range 9) 2605 | -6/Factory | X0-1V1 activates XOMVISION 2622 | -6/Factory | Entered Lower Caves 2624 | -6/Lower Caves | Learned Factory stockpile data 2705 | -6/Lower Caves | Learned Factory stockpile data 2737 | -6/Lower Caves | X0-1V1 activates XOMVISION 2744 | -6/Lower Caves | Build established: Scavenger-Mutant 2756 | -6/Lower Caves | Discovered new exit (range 16) 2764 | -6/Lower Caves | Entered another Lower Caves area 2779 | -6/Lower Caves | Discovered exit to Factory (range 16) 2849 | -6/Lower Caves | Attacked by a delusional Derelict stockpiling Unaware 2849 | -6/Lower Caves | Core integrity fell below 50% 2903 | -6/Lower Caves | Lost 4 parts (1p3n) 2921 | -6/Lower Caves | System corruption reached 10% 3052 | -6/Lower Caves | X0-1V1 vaporized surrounding terrain (radius 22) 3052 | -6/Lower Caves | Spotted B-75 Beast 3067 | -6/Lower Caves | Allies destroyed B-75 Beast 3083 | -6/Lower Caves | X0-1V1 mutated your Weapon slot to Utility slot 3090 | -6/Lower Caves | Discovered new exit (range 17) 3120 | -6/Lower Caves | Entered Data Miner 3120 | -6/Data Miner | Accompanied by 3 allies 3120 | -6/Data Miner | Discovered new exit (range 6) 3149 | -6/Data Miner | Met Data Miner 3176 | -6/Data Miner | Interfaced with the Data Conduit 3197 | -6/Data Miner | Core integrity fell below 20% 3201 | -6/Data Miner | Destroyed by Enhanced Grunt with Improved Deuterium Engine chain reaction Last Messages --------------- your presence is increasingly difficult. 03161_ PENX9L,UG04IU8,3VG4L&9= OX LZ3 03173_ Sneak attack on Data Miner. 03173_ X0-1V1 roars with laughter! 03173_ Data Miner disappears through a trap door. 03176_ Interfacing with system... Downloaded 154 analysis records. Downloaded 773 prototype IDs. Downloaded central machine database. Downloaded 26 destinations. Downloaded encryption format records. Connection remotely terminated. 03177_ X0-1V1 roars with laughter! 03180_ System corrupted: Matter fused (-5). 03192_ Soldier 5a destroyed. 03195_ System corrupted: Energy discharge (-52). 03196_ Mic. Nuclear Core destroyed. 03201_ Chain reaction triggered in Imp. Deuterium Engine. 03201_ Fighter 5c destroyed. 03201_ X0-1V1 cackles wildly! Map ----- +----------------------------------------------------+ | | | | | | | | | | | | | | | | | | | | | | | | | | | | | | | | | | | ????????????????????????????????????????????????? | | ????????????????????????????????????????????????? | | ????????????????????????????????????????????????? | | ????????????????????????????????????????????????? | | ?????????????????????????????????????####???????? | | ??????###############??????????????### #???????? | | ????#"""""""""""""""######????????## #???????? | | ????""""""""" """"" "; # # # ## < ##???????? | | ????""""""""" @g g ######??? | | ???""""""" % !%g g #??? | | ???""""""" l #??? | | ???"""""" #??? | | ???""""""" ##??? | | ???""""""" """"""""""""""""#####???? | | ????""""""" """###############???????? | | ????""""""" """""###?????????????????????? | | ????#"""""""" "#####???????????????????????? | | ??????######"## "#???????????????????????????? | | ???????????#"### "#???????????????????????????? | | ???????????#"#?# "#???????????????????????????? | | ???????????#"#? "#???????????????????????????? | | ??????????????# "#???????????????????????????? | | ?????????????? "#???????????????????????????? | | ?????????????### "#???????????????????????????? | | ???????????????# "????????????????????????????? | | ???????????????# "????????????????????????????? | | ??????????????? "????????????????????????????? | | ???????????????? ?????????????????????????????? | | ????????????????????????????????????????????????? | | ????????????????????????????????????????????????? | | ????????????????????????????????????????????????? | | ????????????????????????????????????????????????? | | ????????????????????????????????????????????????? | +----------------------------------------------------+ Best States ------------- Heat Dissipation 79 Energy Generation 29 Energy Capacity 1665 Matter Stores 900 Matter Capacity 900 Sight Range 21 Terrain Scan Density 10 Armor Coverage 600 Evasion (%) 56 Recoil Reduction 1 Item Schematics ----------------- None Robot Schematics ------------------ None Fabricated ------------ Nothing Repaired ---------- Nothing Studied --------- None Alien Tech Used ----------------- None Achievements -------------- None Challenges ------------ None Game ------ Seed EfficiencyInterdictionCore Manual? 0 Play Time 00:22:37 Cumulative 330.1 hours Start 2026.06.22 @ 23:24:29 End 2026.06.22 @ 23:46:54 Sessions 1 Manual Loads 0 Difficulty Rogue Special Mode None Game No. 689 Rogue 689 Adventurer 0 Explorer 0 Win Type - Total 22 Types 15/0/4/2/1/0/0/0/0/0 Lore% 81 Gallery% 69 Achievement% 52 Wizard Run 0 Options --------- Layout 0 ASCII 0 Keyboard 0 Movement Numpad Keybinds 0 Fullscreen 2 Font 18/Terminus Map View 76x50 Zoom Use 0% Tactical HUD 1 Map Filters NONE Filters SATURATION(100) Steam 1 RUN: 298798a6-04c7-41ec-8abe-e34b943d2424